[Event "12th Arad Open 2019"]
[Site "Arad"]
[Date "2019.07.27"]
[Round "5.34"]
[White "Bucur, Denisa-Andreea"]
[Black "Bulau, Andrei-Cristian"]
[Result "1/2-1/2"]
[ECO "D30"]
[WhiteElo "1943"]
[BlackElo "2169"]
[Annotator "NA"]
[PlyCount "33"]
[EventDate "2019.07.24"]
[EventType "swiss"]
[EventCountry "ROU"]
[SourceTitle "playchess.com"]
[Source "ChessBase"]
[SourceQuality "1"]
[TimeControl "40/5400+30:900+30"]

1. d4 {[%emt 0:00:00]} d5 {[%emt 0:00:00]} 2. c4 {[%emt 0:00:00]} e6 {[%emt 0:00:00]} 3. Nf3 {[%emt 0:00:01]} c6 {[%emt 0:00:02]} 4. Qc2 {[%emt 0:01:23]} Nf6 {[%emt 0:00:31]} 5. g3 {[%emt 0:00:32]} Be7 {[%emt 0:02:15]} 6. Bg2 {[%emt 0:00:39]} O-O {[%emt 0:00:08]} 7. O-O {[%emt 0:00:10]} Ne4 {[%emt 0:04:32]} 8. Nbd2 {[%emt 0:02:27]} f5 {[%emt 0:02:39]} 9. b3 {[%emt 0:04:50]} Nd7 {[%emt 0:01:07]} 10. a4 {[%emt 0:04:23]} Bf6 {[%emt 0:05:44]} 11. Bb2 {[%emt 0:04:20]} g5 {[%emt 0:13:29]} 12. Rfd1 {[%emt 0:02:35]} g4 {[%emt 0:12:19]} 13. Ne5 {[%emt 0:07:23]} Nxd2 {[%emt 0:08:45]} 14. Qxd2 {[%emt 0:13:37]} Bg5 {[%emt 0:03:27]} 15. Qc2 {[%emt 0:01:34]} Nxe5 {[%emt 0:00:41]} 16. dxe5 {[%emt 0:00:03]} Qe8 {[%emt 0:01:44]} 17. Bc1 {[%emt 0:16:53]} 1/2-1/2

[Event "12th Arad Open 2019"]
[Site "Arad"]
[Date "2019.07.27"]
[Round "5.35"]
[White "Pavlenko, Bogdan"]
[Black "Talmaci, Chiril"]
[Result "1-0"]
[ECO "A06"]
[WhiteElo "2164"]
[BlackElo "1731"]
[Annotator "NA"]
[PlyCount "57"]
[EventDate "2019.07.24"]
[EventType "swiss"]
[EventCountry "ROU"]
[SourceTitle "playchess.com"]
[Source "ChessBase"]
[SourceQuality "1"]
[TimeControl "40/5400+30:900+30"]

1. g3 {[%emt 0:00:00]} d5 {[%emt 0:00:00]} 2. Nf3 {[%emt 0:00:00]} Nf6 {[%emt 0:00:00]} 3. Bg2 {[%emt 0:00:00]} Bf5 {[%emt 0:00:00]} 4. O-O {[%emt 0:00:02]} e6 {[%emt 0:00:04]} 5. d3 {[%emt 0:00:09]} h6 {[%emt 0:00:07]} 6. c4 {[%emt 0:00:23]} c6 {[%emt 0:00:13]} 7. Be3 {[%emt 0:00:20]} Nbd7 {[%emt 0:01:12]} 8. Qb3 {[%emt 0:06:43]} Qb8 {[%emt 0:00:46]} 9. Bf4 {[%emt 0:02:16]} e5 {[%emt 0:10:30]} 10. Nxe5 {[%emt 0:01:47]} Nxe5 {[%emt 0:02:08]} 11. d4 {[%emt 0:02:06]} dxc4 {[%emt 0:02:13]} 12. Qa4 {[%emt 0:04:15]} Nfd7 {[%emt 0:06:47]} 13. dxe5 {[%emt 0:11:50]} Nb6 {[%emt 0:00:18]} 14. Qa5 {[%emt 0:02:14]} Be6 {[%emt 0:01:26]} 15. Nc3 {[%emt 0:05:53]} Be7 {[%emt 0:03:10]} 16. e4 {[%emt 0:03:07]} Nd7 {[%emt 0:03:10]} 17. Nd5 {[%emt 0:05:04]} Bd8 {[%emt 0:07:19]} 18. Qa3 {[%emt 0:06:24]} g5 {[%emt 0:03:26]} 19. Bd2 {[%emt 0:06:34]} cxd5 {[%emt 0:04:02]} 20. exd5 {[%emt 0:00:21]} Bf5 {[%emt 0:01:27]} 21. Bc3 {[%emt 0:00:55]} Rg8 {[%emt 0:07:08]} 22. Rfe1 {[%emt 0:00:44]} Rg6 {[%emt 0:12:14]} 23. Rad1 {[%emt 0:03:41]} Qc8 {[%emt 0:08:37]} 24. e6 {[%emt 0:02:03]} fxe6 {[%emt 0:00:41]} 25. dxe6 {[%emt 0:00:57]} Nb6 {[%emt 0:12:06]} 26. e7 {[%emt 0:02:14]} Bc7 {[%emt 0:00:07]} 27. Rd8+ {[%emt 0:01:03]} Qxd8 {[%emt 0:03:23]} 28. exd8=Q+ {[%emt 0:00:36]} Kxd8 {[%emt 0:00:03]} 29. Qf8+ {[%emt 0:00:40]} 1-0

[Event "12th Arad Open 2019"]
[Site "Arad"]
[Date "2019.07.27"]
[Round "5.36"]
[White "Ciorica, Mihai-Vlad"]
[Black "Tinica, Gabriel"]
[Result "1/2-1/2"]
[ECO "A57"]
[WhiteElo "2110"]
[BlackElo "1712"]
[Annotator "NA"]
[PlyCount "152"]
[EventDate "2019.07.24"]
[EventType "swiss"]
[EventCountry "ROU"]
[SourceTitle "playchess.com"]
[Source "ChessBase"]
[SourceQuality "1"]
[TimeControl "40/5400+30:900+30"]

1. d4 {[%emt 0:00:00]} Nf6 {[%emt 0:00:00]} 2. c4 {[%emt 0:00:02]} c5 {[%emt 0:00:01]} 3. d5 {[%emt 0:00:06]} b5 {[%emt 0:00:04]} 4. Qc2 {[%emt 0:00:15]} bxc4 {[%emt 0:00:23]} 5. e4 {[%emt 0:00:06]} d6 {[%emt 0:00:08]} 6. Bxc4 {[%emt 0:00:06]} g6 {[%emt 0:00:31]} 7. Nf3 {[%emt 0:00:25]} Bg7 {[%emt 0:01:03]} 8. O-O {[%emt 0:00:25]} O-O {[%emt 0:00:21]} 9. Nc3 {[%emt 0:01:21]} Nbd7 {[%emt 0:03:44]} 10. Re1 {[%emt 0:00:59]} Nb6 {[%emt 0:01:45]} 11. Bf1 {[%emt 0:00:26]} e6 {[%emt 0:03:20]} 12. dxe6 {[%emt 0:03:32]} Bxe6 {[%emt 0:00:57]} 13. h3 {[%emt 0:01:00]} d5 {[%emt 0:18:36]} 14. e5 {[%emt 0:04:23]} Nfd7 {[%emt 0:06:12]} 15. Bg5 {[%emt 0:03:42]} Qc7 {[%emt 0:06:07]} 16. Nb5 {[%emt 0:02:18]} Qb7 {[%emt 0:00:44]} 17. Be7 {[%emt 0:06:54]} Nxe5 {[%emt 0:00:19]} 18. Bxf8 {[%emt 0:00:26]} Nxf3+ {[%emt 0:00:04]} 19. gxf3 {[%emt 0:00:07]} Bxf8 {[%emt 0:00:15]} 20. Nc3 {[%emt 0:02:12]} Qe7 {[%emt 0:00:48]} 21. f4 {[%emt 0:12:40]} Qh4 {[%emt 0:01:51]} 22. Qd3 {[%emt 0:02:35]} Qxf4 {[%emt 0:02:10]} 23. Qg3 {[%emt 0:01:20]} Qf6 {[%emt 0:03:41]} 24. Rad1 {[%emt 0:07:16]} Rd8 {[%emt 0:05:49]} 25. Bg2 {[%emt 0:01:24]} Bh6 {[%emt 0:10:11]} 26. Qc7 {[%emt 0:03:39]} Bf4 {[%emt 0:10:06]} 27. Qxc5 {[%emt 0:17:40]} Qg5 {[%emt 0:07:08]} 28. Rd3 {[%emt 0:05:35]} Rc8 {[%emt 0:00:39]} 29. Qb5 {[%emt 0:04:07]} Bd7 {[%emt 0:04:06]} 30. Qa6 {[%emt 0:01:36]} Bf5 {[%emt 0:02:36]} 31. Rf3 {[%emt 0:04:46]} d4 {[%emt 0:01:13]} 32. Ne2 {[%emt 0:02:28]} Be4 {[%emt 0:00:48]} 33. Nxd4 {[%emt 0:00:05]} Bxf3 {[%emt 0:00:57]} 34. Nxf3 {[%emt 0:00:02]} Qc5 {[%emt 0:00:58]} 35. Qxa7 {[%emt 0:01:16]} Ra8 {[%emt 0:00:34]} 36. Qb7 {[%emt 0:07:51]} Bg3 {[%emt 0:01:00]} 37. Rf1 {[%emt 0:02:26]} Rxa2 38. Ne1 {[%emt 0:02:16]} Bc7 {[%emt 0:02:00]} 39. Nd3 {[%emt 0:00:15]} Qd6 {[%emt 0:00:04]} 40. Rc1 {[%emt 0:00:00]} Qxd3 {[%emt 0:00:00]} 41. Qxc7 {[%emt 0:01:19]} Qd4 {[%emt 0:06:04]} 42. Qc3 {[%emt 0:01:36]} Qxc3 {[%emt 0:01:13]} 43. bxc3 {[%emt 0:00:06]} Na4 {[%emt 0:00:08]} 44. c4 {[%emt 0:01:56]} Nc5 {[%emt 0:00:04]} 45. Rd1 {[%emt 0:02:18]} Rc2 {[%emt 0:00:28]} 46. Bd5 {[%emt 0:01:01]} Ne6 {[%emt 0:01:06]} 47. Bxe6 {[%emt 0:01:49]} fxe6 {[%emt 0:00:05]} 48. Rd4 {[%emt 0:00:07]} Kf7 {[%emt 0:00:10]} 49. Kg2 {[%emt 0:00:59]} e5 {[%emt 0:00:27]} 50. Rd7+ {[%emt 0:00:49]} Ke6 {[%emt 0:00:25]} 51. Rc7 {[%emt 0:00:37]} Rc3 {[%emt 0:02:03]} 52. c5 {[%emt 0:00:19]} g5 {[%emt 0:00:49]} 53. c6 {[%emt 0:00:34]} h5 {[%emt 0:00:57]} 54. Rc8 {[%emt 0:00:22]} Kf7 {[%emt 0:00:05]} 55. c7 {[%emt 0:00:47]} Kg7 {[%emt 0:00:03]} 56. Kf1 {[%emt 0:02:31]} e4 {[%emt 0:00:08]} 57. Ke2 {[%emt 0:00:10]} Rc2+ {[%emt 0:00:55]} 58. Ke3 {[%emt 0:00:06]} Rc4 {[%emt 0:00:03]} 59. Kd2 {[%emt 0:03:13]} Rc6 {[%emt 0:00:13]} 60. Ke3 {[%emt 0:02:28]} Rc4 {[%emt 0:00:05]} 61. Re8 {[%emt 0:01:53]} Rxc7 {[%emt 0:00:10]} 62. Kxe4 {[%emt 0:00:09]} Rc2 {[%emt 0:01:20]} 63. Kf5 {[%emt 0:00:21]} Rxf2+ {[%emt 0:00:10]} 64. Kxg5 {[%emt 0:00:06]} Rh2 {[%emt 0:00:09]} 65. h4 {[%emt 0:00:22]} Rh1 {[%emt 0:00:26]} 66. Re7+ {[%emt 0:00:20]} Kh8 {[%emt 0:00:50]} 67. Kg6 {[%emt 0:00:54]} Rg1+ {[%emt 0:00:08]} 68. Kh6 {[%emt 0:00:20]} Rg2 {[%emt 0:00:16]} 69. Rh7+ {[%emt 0:01:47]} Kg8 {[%emt 0:00:13]} 70. Ra7 {[%emt 0:00:05]} Kh8 {[%emt 0:00:07]} 71. Ra5 {[%emt 0:00:48]} Rg3 {[%emt 0:00:38]} 72. Kxh5 {[%emt 0:00:09]} Rg1 {[%emt 0:00:13]} 73. Rg5 {[%emt 0:00:27]} Rxg5+ {[%emt 0:00:12]} 74. hxg5 {[%emt 0:00:05]} Kh7 {[%emt 0:00:06]} 75. g6+ {[%emt 0:00:06]} Kg7 {[%emt 0:00:04]} 76. Kg5 {[%emt 0:00:03]} Kg8 {[%emt 0:00:07]} 1/2-1/2

[Event "12th Arad Open 2019"]
[Site "Arad"]
[Date "2019.07.27"]
[Round "5.38"]
[White "Avramescu, Paul-Mihai"]
[Black "Dospin, Florin-Andrei"]
[Result "1-0"]
[ECO "D81"]
[WhiteElo "2061"]
[BlackElo "1617"]
[Annotator "NA"]
[PlyCount "41"]
[EventDate "2019.07.24"]
[EventType "swiss"]
[EventCountry "ROU"]
[SourceTitle "playchess.com"]
[Source "ChessBase"]
[SourceQuality "1"]
[TimeControl "40/5400+30:900+30"]

1. d4 {[%emt 0:00:00]} Nf6 {[%emt 0:00:00]} 2. c4 {[%emt 0:00:00]} g6 {[%emt 0:00:01]} 3. Nc3 {[%emt 0:00:00]} d5 {[%emt 0:00:18]} 4. Qb3 {[%emt 0:00:00]} c6 {[%emt 0:02:12]} 5. cxd5 {[%emt 0:00:05]} Nxd5 {[%emt 0:00:28]} 6. e4 {[%emt 0:00:27]} Nxc3 {[%emt 0:00:22]} 7. bxc3 {[%emt 0:00:03]} Bg7 {[%emt 0:00:20]} 8. Nf3 {[%emt 0:01:11]} O-O {[%emt 0:00:20]} 9. Ba3 {[%emt 0:00:13]} Qc7 {[%emt 0:02:32]} 10. Be2 {[%emt 0:00:20]} Re8 {[%emt 0:02:32]} 11. O-O {[%emt 0:00:21]} e5 {[%emt 0:02:59]} 12. Rfe1 {[%emt 0:00:25]} Be6 {[%emt 0:01:22]} 13. d5 {[%emt 0:00:25]} cxd5 {[%emt 0:00:59]} 14. exd5 {[%emt 0:00:07]} Bg4 {[%emt 0:03:41]} 15. d6 {[%emt 0:00:55]} Qb6 {[%emt 0:02:07]} 16. Bb5 {[%emt 0:01:45]} Bd7 {[%emt 0:08:27]} 17. Rab1 {[%emt 0:02:12]} Bxb5 {[%emt 0:01:22]} 18. Ng5 {[%emt 0:01:57]} Nc6 {[%emt 0:01:30]} 19. Nxf7 {[%emt 0:01:45]} Bd3 {[%emt 0:04:21]} 20. Nh6+ {[%emt 0:00:13]} Kh8 {[%emt 0:00:24]} 21. Nf7+ 1-0

[Event "12th Arad Open 2019"]
[Site "Arad"]
[Date "2019.07.27"]
[Round "5.39"]
[White "Mihai, Cristian"]
[Black "Kutnik, Alexandru-Francisc"]
[Result "0-1"]
[ECO "A40"]
[WhiteElo "1903"]
[BlackElo "2043"]
[Annotator "NA"]
[PlyCount "166"]
[EventDate "2019.07.24"]
[EventType "swiss"]
[EventCountry "ROU"]
[SourceTitle "playchess.com"]
[Source "ChessBase"]
[SourceQuality "1"]
[TimeControl "40/5400+30:900+30"]

1. d4 {[%emt 0:00:22]} g6 {[%emt 0:01:00]} 2. c4 {[%emt 0:00:24]} Bg7 {[%emt 0:00:14]} 3. e4 {[%emt 0:00:25]} c5 {[%emt 0:00:16]} 4. d5 {[%emt 0:02:40]} d6 {[%emt 0:00:18]} 5. Ne2 {[%emt 0:03:30]} Nf6 {[%emt 0:00:08]} 6. Nbc3 {[%emt 0:00:06]} O-O {[%emt 0:00:08]} 7. Ng3 {[%emt 0:00:11]} e5 {[%emt 0:00:54]} 8. Be2 {[%emt 0:00:27]} Na6 {[%emt 0:01:17]} 9. h4 {[%emt 0:00:19]} h6 {[%emt 0:02:11]} 10. Be3 {[%emt 0:10:04]} Nc7 {[%emt 0:00:47]} 11. Qd2 {[%emt 0:19:58]} Kh7 {[%emt 0:02:40]} 12. f3 {[%emt 0:15:07]} a6 {[%emt 0:00:18]} 13. a4 {[%emt 0:00:06]} b6 {[%emt 0:00:02]} 14. h5 {[%emt 0:01:20]} g5 {[%emt 0:00:18]} 15. Nf5 {[%emt 0:00:13]} Bxf5 {[%emt 0:00:46]} 16. exf5 {[%emt 0:00:10]} Qd7 {[%emt 0:06:23]} 17. Bd3 {[%emt 0:06:40]} Rfb8 18. Kf2 {[%emt 0:17:50]} Qe7 {[%emt 0:24:31]} 19. g4 {[%emt 0:06:34]} Kh8 {[%emt 0:00:47]} 20. Be4 {[%emt 0:03:51]} Rb7 {[%emt 0:09:34]} 21. Rhb1 {[%emt 0:03:26]} Rab8 {[%emt 0:03:12]} 22. b3 {[%emt 0:02:51]} b5 {[%emt 0:00:35]} 23. Qc2 {[%emt 0:03:40]} Nd7 {[%emt 0:07:43]} 24. Ra2 {[%emt 0:01:10]} bxc4 {[%emt 0:03:50]} 25. bxc4 {[%emt 0:00:04]} Rxb1 {[%emt 0:00:27]} 26. Nxb1 {[%emt 0:00:01]} Rb4 {[%emt 0:00:43]} 27. Bd2 {[%emt 0:00:05]} a5 {[%emt 0:05:15]} 28. Bxb4 {[%emt 0:00:28]} cxb4 {[%emt 0:00:02]} 29. Nd2 {[%emt 0:00:08]} Na6 {[%emt 0:01:05]} 30. Nb3 {[%emt 0:00:36]} Qd8 {[%emt 0:00:03]} 31. Qd3 {[%emt 0:02:07]} Qc7 {[%emt 0:01:24]} 32. Kg2 {[%emt 0:00:29]} Bf8 {[%emt 0:00:35]} 33. Qe2 {[%emt 0:00:35]} Be7 {[%emt 0:00:12]} 34. Bd3 {[%emt 0:00:18]} f6 {[%emt 0:01:29]} 35. Bc2 {[%emt 0:00:30]} Bd8 {[%emt 0:00:12]} 36. c5 {[%emt 0:00:37]} Naxc5 {[%emt 0:00:43]} 37. Qb5 {[%emt 0:00:15]} Nxb3 {[%emt 0:01:38]} 38. Bxb3 {[%emt 0:00:00]} Nc5 {[%emt 0:00:14]} 39. Qe8+ {[%emt 0:00:16]} Kg7 {[%emt 0:00:38]} 40. Qg6+ {[%emt 0:00:00]} Kf8 {[%emt 0:00:00]} 41. Qxh6+ {[%emt 0:00:14]} Ke8 {[%emt 0:00:56]} 42. Qh8+ {[%emt 0:01:30]} Kd7 {[%emt 0:00:12]} 43. Qg7+ {[%emt 0:00:16]} Be7 {[%emt 0:00:19]} 44. h6 {[%emt 0:02:01]} Nxb3 {[%emt 0:00:54]} 45. h7 {[%emt 0:00:09]} Nc1 {[%emt 0:00:59]} 46. Rf2 {[%emt 0:02:54]} Nd3 {[%emt 0:00:26]} 47. h8=Q {[%emt 0:00:15]} Qc5 {[%emt 0:01:43]} 48. Qxe7+ {[%emt 0:06:02]} Kxe7 {[%emt 0:00:01]} 49. Qg7+ {[%emt 0:00:08]} Ke8 {[%emt 0:00:34]} 50. Qg8+ {[%emt 0:00:05]} Kd7 {[%emt 0:00:12]} 51. Qe6+ {[%emt 0:00:08]} Kc7 {[%emt 0:00:07]} 52. Qe7+ {[%emt 0:00:09]} Kc8 {[%emt 0:11:33]} 53. Qe8+ {[%emt 0:02:28]} Kb7 {[%emt 0:00:12]} 54. Qd7+ {[%emt 0:00:12]} Ka6 {[%emt 0:00:29]} 55. Rd2 {[%emt 0:00:48]} Ne1+ {[%emt 0:00:45]} 56. Kh3 {[%emt 0:00:11]} Nxf3 {[%emt 0:00:19]} 57. Qd8 {[%emt 0:00:51]} Kb7 {[%emt 0:01:15]} 58. Qd7+ {[%emt 0:00:09]} Qc7 {[%emt 0:00:34]} 59. Qb5+ {[%emt 0:00:06]} Ka7 {[%emt 0:00:09]} 60. Rg2 {[%emt 0:02:58]} Nd4 {[%emt 0:01:17]} 61. Qe8 {[%emt 0:00:01]} b3 {[%emt 0:03:40]} 62. Kh2 Qh7+ {[%emt 0:07:58]} 63. Qh5 {[%emt 0:01:57]} Qb7 {[%emt 0:00:13]} 64. Rb2 {[%emt 0:00:21]} Qxd5 {[%emt 0:00:13]} 65. Qh7+ {[%emt 0:00:15]} Qb7 {[%emt 0:00:38]} 66. Qg8 {[%emt 0:00:43]} d5 {[%emt 0:03:02]} 67. Qd8 {[%emt 0:00:09]} Ka6 {[%emt 0:00:47]} 68. Qd6+ {[%emt 0:00:08]} Qc6 {[%emt 0:00:06]} 69. Qd8 {[%emt 0:00:39]} e4 {[%emt 0:00:12]} 70. Kg2 {[%emt 0:00:46]} Qc3 {[%emt 0:06:17]} 71. Qa8+ {[%emt 0:00:12]} Kb6 {[%emt 0:00:09]} 72. Qb8+ {[%emt 0:00:12]} Kc5 {[%emt 0:00:08]} 73. Qa7+ {[%emt 0:00:36]} Kb4 {[%emt 0:00:16]} 74. Rf2 {[%emt 0:01:01]} e3 {[%emt 0:00:38]} 75. Qb7+ {[%emt 0:01:35]} Kxa4 {[%emt 0:00:45]} 76. Qd7+ {[%emt 0:00:20]} Qc6 {[%emt 0:00:14]} 77. Qa7 {[%emt 0:00:43]} Nb5 {[%emt 0:00:25]} 78. Qxe3 {[%emt 0:00:16]} d4+ {[%emt 0:00:08]} 79. Qf3 {[%emt 0:00:10]} Qxf3+ {[%emt 0:00:13]} 80. Kxf3 {[%emt 0:00:02]} Kb4 {[%emt 0:00:26]} 81. Ke4 {[%emt 0:00:26]} a4 {[%emt 0:00:13]} 82. Kd5 {[%emt 0:00:08]} a3 {[%emt 0:00:07]} 83. Ke6 {[%emt 0:01:12]} b2 {[%emt 0:00:13]} 0-1

[Event "12th Arad Open 2019"]
[Site "Arad"]
[Date "2019.07.28"]
[Round "6.1"]
[White "Istratescu, Andrei"]
[Black "Mastrovasilis, Dimitrios"]
[Result "1/2-1/2"]
[ECO "D35"]
[WhiteElo "2555"]
[BlackElo "2589"]
[Annotator "ChessBase"]
[PlyCount "132"]
[EventDate "2019.07.24"]
[EventType "swiss"]
[EventCountry "ROU"]
[SourceTitle "playchess.com"]
[Source "ChessBase"]
[SourceQuality "1"]
[TimeControl "40/5400+30:900+30"]

1. c4 {[%emt 0:00:00]} e6 {[%emt 0:00:00]} 2. d4 {[%emt 0:01:39]} d5 {[%emt 0:00:00]} 3. Nc3 {[%emt 0:00:16]} Nf6 {[%emt 0:00:11]} 4. cxd5 {[%emt 0:00:19]} Nxd5 {[%emt 0:00:12]} 5. e4 {[%emt 0:01:08]} Nxc3 {[%emt 0:00:10]} 6. bxc3 {[%emt 0:00:05]} c5 {[%emt 0:00:09]} 7. Rb1 {[%emt 0:00:40]} Be7 {[%emt 0:00:58]} 8. Bb5+ {[%emt 0:11:43]} Bd7 {[%emt 0:00:37]} 9. Bxd7+ {[%emt 0:04:55]} Qxd7 {[%emt 0:05:58]} 10. Nf3 {[%emt 0:00:47]} cxd4 {[%emt 0:06:25]} 11. Qxd4 {[%emt 0:08:14]} Qxd4 {[%emt 0:10:53]} 12. cxd4 {[%emt 0:00:12]} b6 {[%emt 0:00:56]} 13. Bf4 {[%emt 0:01:13]} Nd7 {[%emt 0:02:02]} 14. Ke2 {[%emt 0:02:31]} O-O {[%emt 0:01:26]} 15. Rhc1 {[%emt 0:00:55]} Rac8 {[%emt 0:09:03]} 16. a4 {[%emt 0:06:35]} Ba3 {[%emt 0:06:41]} 17. Rxc8 {[%emt 0:02:30]} Rxc8 {[%emt 0:00:09]} 18. Kd3 {[%emt 0:00:54]} Kf8 {[%emt 0:09:13]} 19. Nd2 {[%emt 0:01:42]} e5 {[%emt 0:19:41]} 20. Bxe5 {[%emt 0:00:43]} Nxe5+ {[%emt 0:00:07]} 21. dxe5 {[%emt 0:00:03]} Rd8+ {[%emt 0:00:09]} 22. Kc2 {[%emt 0:25:49]} Rd4 {[%emt 0:01:02]} 23. a5 {[%emt 0:01:41]} Bb4 {[%emt 0:06:34]} 24. Nf3 {[%emt 0:01:59]} Rxe4 {[%emt 0:04:18]} 25. axb6 {[%emt 0:01:11]} axb6 {[%emt 0:00:07]} 26. Kd3 {[%emt 0:00:18]} Rf4 {[%emt 0:00:29]} 27. Ng5 {[%emt 0:05:24]} Bc5 {[%emt 0:03:35]} 28. Ne4 {[%emt 0:06:50]} Rf5 {[%emt 0:01:35]} 29. Nxc5 {[%emt 0:07:09]} bxc5 {[%emt 0:00:07]} 30. f3 {[%emt 0:00:14]} Rxe5 {[%emt 0:00:09]} 31. Rb7 {[%emt 0:00:04]} g5 {[%emt 0:05:05]} 32. g4 {[%emt 0:01:17]} Kg7 {[%emt 0:00:53]} 33. Rc7 {[%emt 0:00:39]} Kg6 {[%emt 0:01:04]} 34. Rc6+ {[%emt 0:00:38]} f6 {[%emt 0:00:08]} 35. Kd2 {[%emt 0:00:41]} h6 {[%emt 0:00:53]} 36. Kd3 {[%emt 0:02:29]} Kf7 {[%emt 0:01:18]} 37. Rc7+ {[%emt 0:01:15]} Ke6 {[%emt 0:01:25]} 38. Rh7 {[%emt 0:00:07]} Kd5 {[%emt 0:02:04]} 39. Rd7+ {[%emt 0:00:06]} Ke6 {[%emt 0:01:41]} 40. Rh7 {[%emt 0:00:00]} Kd5 {[%emt 0:00:00]} 41. Rxh6 {[%emt 0:02:28]} c4+ {[%emt 0:06:03]} 42. Kd2 {[%emt 0:00:07]} Re6 {[%emt 0:01:02]} 43. Rh8 {[%emt 0:04:34]} Ke5 {[%emt 0:05:43]} 44. h4 {[%emt 0:01:26]} gxh4 {[%emt 0:02:04]} 45. Rxh4 {[%emt 0:00:08]} Kf4 {[%emt 0:02:44]} 46. g5+ {[%emt 0:00:23]} Kxg5 {[%emt 0:00:34]} 47. Rg4+ {[%emt 0:01:22]} Kh5 {[%emt 0:00:04]} 48. Rxc4 {[%emt 0:00:04]} f5 {[%emt 0:00:05]} 49. Rc1 {[%emt 0:01:19]} Kg5 {[%emt 0:00:25]} 50. Re1 {[%emt 0:00:50]} Ra6 {[%emt 0:00:26]} 51. Ke3 {[%emt 0:00:31]} Ra3+ {[%emt 0:00:07]} 52. Kf2 {[%emt 0:00:05]} Kf4 {[%emt 0:00:05]} 53. Rb1 {[%emt 0:02:00]} Ra2+ {[%emt 0:01:57]} 54. Kf1 {[%emt 0:00:36]} Kg3 {[%emt 0:00:36]} 55. f4 {[%emt 0:00:06]} Rf2+ {[%emt 0:00:47]} 56. Kg1 {[%emt 0:00:07]} Rxf4 {[%emt 0:00:11]} 57. Rb2 {[%emt 0:00:15]} Rf3 {[%emt 0:01:20]} 58. Rg2+ {[%emt 0:00:44]} Kh3 {[%emt 0:00:48]} 59. Rh2+ {[%emt 0:01:00]} Kg4 {[%emt 0:00:07]} 60. Rg2+ {[%emt 0:00:34]} Rg3 {[%emt 0:01:14]} 61. Kf2 {[%emt 0:00:14]} f4 {[%emt 0:00:36]} 62. Rxg3+ {[%emt 0:00:12]} fxg3+ {[%emt 0:00:04]} 63. Kg2 {[%emt 0:00:02]} Kf4 {[%emt 0:00:06]} 64. Kg1 {[%emt 0:00:05]} Kf3 {[%emt 0:00:03]} 65. Kf1 {[%emt 0:00:03]} g2+ {[%emt 0:00:04]} 66. Kg1 {[%emt 0:00:01]} Kg3 1/2-1/2

[Event "12th Arad Open 2019"]
[Site "Arad"]
[Date "2019.07.28"]
[Round "6.2"]
[White "Nester, Ihor"]
[Black "Costachi, Mihnea"]
[Result "1/2-1/2"]
[ECO "E62"]
[WhiteElo "2361"]
[BlackElo "2471"]
[Annotator "ChessBase"]
[PlyCount "111"]
[EventDate "2019.07.24"]
[EventType "swiss"]
[EventCountry "ROU"]
[SourceTitle "playchess.com"]
[Source "ChessBase"]
[SourceQuality "1"]
[TimeControl "40/5400+30:900+30"]

1. Nf3 {[%emt 0:00:00]} Nf6 {[%emt 0:00:00]} 2. c4 {[%emt 0:00:00]} g6 {[%emt 0:00:34]} 3. d4 {[%emt 0:00:03]} Bg7 {[%emt 0:00:05]} 4. g3 {[%emt 0:00:03]} O-O {[%emt 0:00:06]} 5. Bg2 {[%emt 0:00:02]} d6 {[%emt 0:00:05]} 6. O-O {[%emt 0:00:05]} Nc6 {[%emt 0:00:15]} 7. Nc3 {[%emt 0:00:05]} e5 {[%emt 0:00:30]} 8. d5 {[%emt 0:00:46]} Nb8 {[%emt 0:00:55]} 9. e4 {[%emt 0:00:45]} a5 {[%emt 0:00:13]} 10. Ne1 {[%emt 0:01:28]} Na6 {[%emt 0:00:05]} 11. Nd3 {[%emt 0:01:00]} Nd7 {[%emt 0:02:15]} 12. Be3 {[%emt 0:03:21]} f5 {[%emt 0:14:28]} 13. f3 {[%emt 0:02:17]} f4 {[%emt 0:12:57]} 14. Bf2 {[%emt 0:00:09]} h5 {[%emt 0:03:24]} 15. Na4 {[%emt 0:13:28]} b6 {[%emt 0:10:18]} 16. a3 {[%emt 0:00:34]} Ndc5 {[%emt 0:00:34]} 17. Naxc5 {[%emt 0:05:21]} Nxc5 {[%emt 0:02:12]} 18. Nxc5 {[%emt 0:00:39]} bxc5 {[%emt 0:00:33]} 19. b4 {[%emt 0:00:26]} axb4 {[%emt 0:02:21]} 20. axb4 {[%emt 0:00:01]} Rxa1 {[%emt 0:00:24]} 21. Qxa1 {[%emt 0:00:01]} cxb4 {[%emt 0:00:24]} 22. Rb1 {[%emt 0:14:45]} g5 {[%emt 0:03:41]} 23. Rxb4 {[%emt 0:00:05]} g4 {[%emt 0:09:52]} 24. Rb8 {[%emt 0:03:20]} Qg5 {[%emt 0:03:15]} 25. Qa8 {[%emt 0:10:01]} gxf3 {[%emt 0:02:39]} 26. Rxc8 {[%emt 0:00:47]} fxg2 {[%emt 0:04:45]} 27. Rxf8+ {[%emt 0:00:18]} Bxf8 {[%emt 0:00:06]} 28. Kxg2 {[%emt 0:00:54]} Qg6 {[%emt 0:08:58]} 29. Qc8 {[%emt 0:05:38]} fxg3 {[%emt 0:08:33]} 30. hxg3 {[%emt 0:00:08]} Qxe4+ {[%emt 0:00:03]} 31. Kg1 {[%emt 0:00:59]} Qb1+ {[%emt 0:01:44]} 32. Kg2 {[%emt 0:00:22]} Qe4+ {[%emt 0:00:33]} 33. Kg1 {[%emt 0:00:02]} Qh7 {[%emt 0:00:29]} 34. Kg2 {[%emt 0:01:54]} Qf7 {[%emt 0:00:33]} 35. Be3 {[%emt 0:01:37]} Kh7 {[%emt 0:03:32]} 36. Bg5 {[%emt 0:02:01]} e4 {[%emt 0:01:37]} 37. Bf4 {[%emt 0:01:47]} Bg7 {[%emt 0:00:33]} 38. Qd8 {[%emt 0:13:03]} Bh6 {[%emt 0:01:17]} 39. Bxh6 {[%emt 0:01:46]} Kxh6 {[%emt 0:00:39]} 40. Qh4 {[%emt 0:00:00]} Qf3+ {[%emt 0:00:00]} 41. Kh2 {[%emt 0:02:34]} Qf2+ {[%emt 0:04:08]} 42. Kh3 {[%emt 0:02:48]} Qf5+ {[%emt 0:03:41]} 43. Kg2 {[%emt 0:00:47]} Qf3+ {[%emt 0:06:45]} 44. Kh2 {[%emt 0:00:17]} Qf2+ {[%emt 0:04:05]} 45. Kh3 {[%emt 0:00:13]} e3 {[%emt 0:02:06]} 46. Qe4 {[%emt 0:00:50]} Qf1+ {[%emt 0:00:09]} 47. Kh4 {[%emt 0:07:39]} Qf6+ {[%emt 0:00:35]} 48. Kh3 {[%emt 0:00:01]} Qf1+ {[%emt 0:00:46]} 49. Kh4 {[%emt 0:00:02]} Qf6+ {[%emt 0:00:53]} 50. Kh3 {[%emt 0:00:05]} Kg7 {[%emt 0:00:49]} 51. Qxe3 {[%emt 0:00:41]} Qf5+ {[%emt 0:00:11]} 52. Kg2 {[%emt 0:00:27]} Qc2+ {[%emt 0:00:02]} 53. Kh3 {[%emt 0:01:27]} Qf5+ {[%emt 0:00:12]} 54. Kg2 {[%emt 0:00:03]} Qc2+ {[%emt 0:00:14]} 55. Kh3 {[%emt 0:00:04]} Qf5+ {[%emt 0:00:04]} 56. Kg2 {[%emt 0:00:03]} 1/2-1/2